Cogmind - Beta 16 @@@ ROGUE MODE // 2025.12.01 @ 12:28:39 Player: Lazz Result: Destroyed by D3-J0W(R) with Subdweller Machine Gun Performance ------------- Evolutions (0) 0 Regions Visited (3) 600 Robots Destroyed (10) 50 Value Destroyed (281) 281 Prototype IDs (3) 60 Alien Tech Used (0) 0 Bonus (0) 0 TOTAL SCORE: 991 Bonus ------- None Cogmind --------- Core Integrity 0/250 Matter 278/300 Energy 52/100 System Corruption 0% Temperature Cool (0) Movement Walking (130) Location -10/Subcaves Parts ------- > --- POWER (1) -------- (None) > --- PROPULSION (2) --- Cargo Legs > --- UTILITY (2+2) ---- Small Storage Unit Weapon Shielding > --- WEAPON (2) ------- Small Laser Light Assault Rifle > --- INVENTORY (8) ---- Light Treads Terrain Scanner Mining Laser Peak State ------------ > --- POWER ------------ (None) > --- PROPULSION ------- Cargo Legs > --- UTILITY ---------- Small Storage Unit Propulsion Shielding > --- WEAPON ----------- Small Laser Light Assault Rifle > --- INVENTORY -------- Light Treads Terrain Scanner Weapon Shielding Mining Laser [Rating: 20] Favorites ----------- Power Light Ion Engine Engine Light Ion Engine Propulsion Compact Wheel Treads Light Treads Leg Cargo Legs Wheel Compact Wheel Utility Small Storage Unit Storage Small Storage Unit Protection Light Armor Plating Weapon Light Assault Rifle Energy Gun Beam Rifle Ballistic Gun Light Assault Rifle Build | -11 -10 -10 -10 ------- Run | Yrd Mat Min Sub Slots Evolved . | . . . . Power . | . . . . Propulsion . | . . . . Utility . | . . . . Weapon . | . . . . Parts Attached 15 | 6 1 1 7 Power 1 | 1 . . . Engine 1 | 1 . . . Core . | . . . . Reactor . | . . . . Propulsion 5 | 2 . 1 2 Treads 1 | . . . 1 Leg 1 | . . . 1 Wheel 3 | 2 . 1 . Hover . | . . . . Flight . | . . . . Utility 4 | 1 1 . 2 Device . | . . . . Storage 1 | 1 . . . Processor . | . . . . Hackware . | . . . . Protection 3 | . 1 . 2 Artifact . | . . . . Weapon 5 | 2 . . 3 Energy Gun 2 | . . . 2 Energy Cannon . | . . . . Ballistic Gun 3 | 2 . . 1 Ballistic Cannon . | . . . . Launcher . | . . . . Special Weapon . | . . . . Impact Weapon . | . . . . Slashing Weapon . | . . . . Piercing Weapon . | . . . . Special Melee Weapon . | . . . . Unidentified Prototypes 1 | . . . 1 Parts Lost 8 | . . 1 7 Power 1 | . . 1 . Propulsion 2 | . . . 2 Utility 2 | . . . 2 Weapon 3 | . . . 3 Highest Loss Streak 4 | . . 1 4 To Critical Strikes . | . . . . Average Backups 6 | 3 4 8 6 Power . | . . . . Propulsion 1 | 1 2 2 1 Utility 1 | . . 3 2 Weapon 2 | 1 1 3 2 Tool/Special . | . . . . Unused Backups 4 | . 1 . 3 Power 1 | . 1 . . Propulsion 1 | . . . 1 Utility 1 | . . . 1 Weapon 1 | . . . 1 Tool/Special . | . . . . Average Slot Usage (%) 85 | . 88 89 82 Engine 4 | . 14 3 . Treads 4 | . . . 10 Wheel 22 | . 28 28 15 Storage 13 | . 14 14 13 Protection 11 | . 3 14 13 Energy Gun 5 | . . . 10 Ballistic Gun 22 | . 28 28 16 Peak Build Rating 20 | 6 7 7 20 Average Rating 6 | 3 6 6 6 On Entrance 4 | . 6 7 6 Avg Prop Armor Cover (%) 14 | . . . 14 Naked Turns . | . . . . Heaviest Build 14 | 11 14 14 12 Greatest Support 32 | 32 32 32 26 Greatest Overweight (x) 1 | . . . 1 Average Overweight (x) . | . . . . Largest Inventory Capacity 8 | 8 8 8 8 Average Capacity 7 | 7 8 8 8 Most Carried 8 | 7 8 8 8 Average Carried 6 | 3 4 8 6 Final Capacity 8 | 8 8 8 8 Final Carried 8 | 4 8 8 3 Class Distribution -------------------- 100% | Mutant Dominant Class ---------------- Mutant | -10/Materials Mutant | -10/Mines Mutant | -10/Subcaves Resources | -11 -10 -10 -10 ----------- Run | Yrd Mat Min Sub Matter Collected 416 | 249 54 65 48 Remotely . | . . . . Salvage Created 329 | . 107 104 118 Parts 25 | . 10 5 10 Haulers Intercepted . | . . . . Recyclers Shooed . | . . . . Parts Field Recycled . | . . . . Retrieved Matter . | . . . . Parts Self-Destructed 7 | . . . 7 Prevented . | . . . . Parts Restored . | . . . . Kills | -11 -10 -10 -10 ------- Run | Yrd Mat Min Sub Combat Hostiles Destroyed 9 | . 4 2 3 Guns 9 | . 4 2 3 Classes Destroyed 5 | . 2 1 2 Tunneler 1 | . . 1 . Swarmer 3 | . 2 . 1 Grunt 4 | . 2 2 . Sentry 1 | . . . 1 Subdweller 1 | . . . 1 Best Kill Streak 2 | . 2 2 2 Combat Bots Only 2 | . 2 2 2 Max Kills in Single Turn 1 | . 1 1 1 Gunslinging . | . . . . Exploded . | . . . . Melee . | . . . . Uniques/NPCs Destroyed . | . . . . Combat | -11 -10 -10 -10 -------- Run | Yrd Mat Min Sub Hostile Shots Fired 85 | . 24 18 43 Missed 20 | . 5 5 10 Hits 65 | . 19 13 33 Projectile 65 | . 19 13 33 Critical Strikes 1 | . . 1 . Damage Taken 975 | . 160 170 645 Core 254 | . 55 59 140 Absorbed by Shields . | . . . . Redirected to Shielding 51 | . . . 51 Core Remaining (%) 100 | 100 . . . Volleys Fired 40 | . 11 11 18 Largest 2 | . 2 2 2 Hottest 76 | . 40 40 76 Shots Fired 76 | . 22 22 32 Gun 76 | . 22 22 32 Cannon . | . . . . Launcher . | . . . . Special . | . . . . Kinetic 68 | . 22 22 24 Thermal 8 | . . . 8 Explosive . | . . . . Electromagnetic . | . . . . Robot Hit Streak 7 | . 5 5 7 Robot Miss Streak 4 | . 4 2 3 Penetration Max . | . . . . Secondary Targets 1 | . . . 1 Max Gunslinging Chain 1 | . . . 1 Shots Hit Robots 48 | . 13 12 23 Core Hits 21 | . 7 6 8 Critical Kills . | . . . . Critical Parts Destroyed . | . . . . Critical Strikes . | . . . . Melee Attacks . | . . . . Impact . | . . . . Slashing . | . . . . Piercing . | . . . . Sneak Attacks . | . . . . Combat Hostiles . | . . . . Follow-up Attacks . | . . . . Damage Inflicted 496 | . 127 131 238 Guns 496 | . 127 131 238 Cannons . | . . . . Explosions . | . . . . Melee . | . . . . Ramming . | . . . . Kinetic 400 | . 127 131 142 Thermal 96 | . . . 96 Explosive . | . . . . Electromagnetic . | . . . . Impact . | . . . . Slashing . | . . . . Piercing . | . . . . Highest Corruption . | . . . . Average Corruption . | . . . . Corruption Purged . | . . . . Corruption Blocked . | . . . . Overload Shots . | . . . . Overflow Damage . | . . . . Projectiles . | . . . . Explosions . | . . . . Melee . | . . . . Knockbacks . | . . . . Impact . | . . . . Kinetic . | . . . . Secondary . | . . . . Self-Inflicted Damage . | . . . . Shots . | . . . . Rammed . | . . . . Targets Rammed . | . . . . Kicked . | . . . . Crushed . | . . . . Highest Temperature 50 | . 6 50 . Average Temperature 18 | . 6 20 . Received Heat Transfer 165 | . 18 120 27 Siege Activations . | . . . . Martial Activations . | . . . . Shielding Activations . | . . . . Robots Disrupted . | . . . . Combat Hostiles . | . . . . Robots Corrupted . | . . . . Combat Hostiles . | . . . . Parts Fried . | . . . . Impact Corruptions . | . . . . Robots Melted . | . . . . Combat Hostiles . | . . . . Parts Melted . | . . . . Heat Transferred 235 | . . . 235 Parts Sabotaged . | . . . . Parts Stolen . | . . . . Parts Stripped . | . . . . Power Chain Reactions . | . . . . Alert | -11 -10 -10 -10 ------- Run | Yrd Mat Min Sub Maximum Alert Level . | . . . . Low Security (%) 100 | 100 100 100 . Level 1 . | . . . . Level 2 . | . . . . Level 3 . | . . . . Level 4 . | . . . . Level 5 . | . . . . High Security . | . . . . Max Security . | . . . . Peak Influence 85 | . 85 45 . Initial . | . . . . Average 15 | . 21 14 . Influence Increases 230 | . 120 70 40 Destroy 0b10 Robot/C 160 | . 80 40 40 Destroy 0b10 Robot/NC 5 | . . 5 . Destroy Leader 20 | . 10 10 . Successful Hack 15 | . 15 . . Disable Machine 15 | . . 15 . Lose Combat Pursuer 15 | . 15 . . Influence Decreases 230 | . 120 70 40 Time Decay 135 | . 45 60 30 Lost Part 20 | . . 10 10 Purge Threat 75 | . 75 . . Squads Dispatched 1 | . 1 . . Investigation 1 | . 1 . . Extermination . | . . . . Reinforcement . | . . . . Assault . | . . . . Garrison . | . . . . Intercept . | . . . . Searches Triggered . | . . . . Construction Impeded . | . . . . Haulers Reinforced . | . . . . Active Scanning Responses . | . . . . Cargo Convoy Interrupts . | . . . . Stealth | -11 -10 -10 -10 --------- Run | Yrd Mat Min Sub Distress Signals . | . . . . Communications Jammed . | . . . . Distress Signals . | . . . . Times Spotted 13 | . 6 2 5 Peak Tracking Total 4 | . 4 2 3 Tactical Retreats 1 | . 1 . . Traps | -11 -10 -10 -10 ------- Run | Yrd Mat Min Sub Traps Triggered 1 | . . . 1 Indirectly . | . . . . Trap Hack Attempts . | . . . . Triggered . | . . . . Disarmed . | . . . . Reprogrammed . | . . . . Reused . | . . . . Traps Extracted . | . . . . Installed . | . . . . Triggered . | . . . . Machines | -11 -10 -10 -10 ---------- Run | Yrd Mat Min Sub Machines Disabled 1 | . . 1 . Max in Single Turn 1 | . . 1 . Machines Repaired . | . . . . Machines Dismantled . | . . . . Machines Sabotaged . | . . . . Overloaded Fab Kills . | . . . . Hacking | -11 -10 -10 -10 --------- Run | Yrd Mat Min Sub Machines Accessed 3 | . 3 . . Terminals 3 | . 3 . . Fabricators . | . . . . Repair Stations . | . . . . Recycling Units . | . . . . Scanalyzers . | . . . . Garrison Access . | . . . . Total Hacks 10 | . 10 . . Successful 4 | . 4 . . Failed 6 | . 6 . . Catastrophic 1 | . 1 . . Database Lockouts . | . . . . Manual . | . . . . Terminals 10 | . 10 . . Fabricators . | . . . . Repair Stations . | . . . . Recycling Units . | . . . . Scanalyzers . | . . . . Garrison Access . | . . . . Terminal Hacks 4 | . 4 . . Prototype ID Bank 1 | . 1 . . Unreport Threat 1 | . 1 . . Zone Layout 2 | . 2 . . Fabricator Hacks . | . . . . Repair Station Hacks . | . . . . Recycling Unit Hacks . | . . . . Scanalyzer . | . . . . Garrison Access Hacks . | . . . . Unauthorized Hacks . | . . . . Terminals . | . . . . Fabricators . | . . . . Repair Stations . | . . . . Recycling Units . | . . . . Scanalyzers . | . . . . Garrison Access . | . . . . Data Cores Recovered . | . . . . Used . | . . . . Hacking Detections 3 | . 3 . . Full Trace Events 1 | . 1 . . Feedback Events . | . . . . Feedback Blocked . | . . . . Robot Schematics Acquired . | . . . . Robots Built . | . . . . Authchips . | . . . . Time . | . . . . Total Robot Build Rating . | . . . . Part Schematics Acquired . | . . . . Parts Built . | . . . . Authchips . | . . . . Time . | . . . . Total Part Build Rating . | . . . . Part Studies Acquired . | . . . . Parts Repaired . | . . . . Time . | . . . . Parts Recycled . | . . . . Recycled Matter . | . . . . Retrieved Matter . | . . . . Retrieved Components . | . . . . Parts Scanalyzed . | . . . . Part Schematics Acquired . | . . . . Parts Damaged . | . . . . Bothacking | -11 -10 -10 -10 ------------ Run | Yrd Mat Min Sub Used RIF Installer . | . . . . Robots Hacked . | . . . . Non-combat . | . . . . Combat . | . . . . Robot Hacks Applied . | . . . . Relay Couplers Released . | . . . . Fabnet Peak Effective % . | . . . . Robots Rewired . | . . . . Allies Hacked . | . . . . Hacks Repelled . | . . . . Allies | -11 -10 -10 -10 -------- Run | Yrd Mat Min Sub Total Allies . | . . . . Largest Group . | . . . . Highest-Rated Group . | . . . . Highest-Rated Ally . | . . . . Total Orders . | . . . . Ally Attacks . | . . . . Total Damage . | . . . . Kills . | . . . . Allies Corrupted . | . . . . Allies Melted . | . . . . Intel | -11 -10 -10 -10 ------- Run | Yrd Mat Min Sub Active Infowar (turns) . | . . . . Robot Analysis Total . | . . . . Derelict Logs Recovered 1 | . . . 1 Drone Launches . | . . . . Drone Recoveries . | . . . . Exploration | -11 -10 -10 -10 ------------- Run | Yrd Mat Min Sub Turns Passed 711 | 62 173 165 311 Spaces Moved 590 | 50 115 130 295 Core 8 | 8 . . . Treads . | . . . . Legs . | . . . . Wheels 582 | 42 115 130 295 Hover . | . . . . Flight . | . . . . Fastest Speed 50 | 50 100 90 80 Average Speed 91 | 92 100 99 84 Slowest Speed 100 | 100 100 100 95 Overloaded Moves . | . . . . Propulsion Burnouts . | . . . . Robots Hopped . | . . . . Potential Cave-ins . | . . . . Cave-ins Triggered . | . . . . Exploration Rate (%) 19 | 4 23 25 24 Regions Visited 3 Branch Regions 2 Pre-discovered Areas 1 | . . 1 . Known Exits Taken . | . . . . Unknown Exits Taken 3 | 1 1 1 . Scrap Searched . | . . . . Spaces Dug . | . . . . Terrain Destroyed . | . . . . Melee . | . . . . Projectile . | . . . . AOE . | . . . . Terrain Rammed . | . . . . Walls Destroyed . | . . . . Machines Disabled . | . . . . Actions | -11 -10 -10 -10 --------- Run | Yrd Mat Min Sub Total 690 | 65 153 145 327 Wait 28 | . 20 3 5 Move 587 | 49 114 129 295 Hop . | . . . . Pick Up 17 | 10 6 . 1 Fast Attach 1 | . . . 1 Attach 13 | 6 1 . 6 Detach . | . . . . Swap 1 | . . 1 . Drop 3 | . 1 1 1 Fire 40 | . 11 11 18 Melee . | . . . . Ram . | . . . . Kick . | . . . . Crush . | . . . . Escape Stasis . | . . . . Rewire . | . . . . Trap . | . . . . Miscellaneous . | . . . . Route ------- -11/Scrapyard -10/Materials -10/Mines -10/Subcaves (discovered 1 exit: Mat) History --------- Turn | Location | Event 5 | -11/Scrapyard | Discovered new exit (range 15) 63 | -11/Scrapyard | Entered Materials 202 | -10/Materials | Discovered new exit (range 16) 236 | -10/Materials | Entered Mines 308 | -10/Mines | Build established: Mutant 335 | -10/Mines | Learned location of Storage (-9) 373 | -10/Mines | Discovered new exit (range 13) 401 | -10/Mines | Entered Subcaves 447 | -10/Subcaves | Core integrity fell below 50% 475 | -10/Subcaves | Identified exit to Materials 611 | -10/Subcaves | A Subdweller sparked back to life 611 | -10/Subcaves | A Subdweller sparked back to life 611 | -10/Subcaves | A Subdweller sparked back to life 700 | -10/Subcaves | Found Prototype Leg 708 | -10/Subcaves | Identified Cargo Legs 709 | -10/Subcaves | Core integrity fell below 20% 709 | -10/Subcaves | Attached Cargo Legs, gained temporary slots: Utility x2 712 | -10/Subcaves | Destroyed by D3-J0W(R) with Subdweller Machine Gun Last Messages --------------- to move. 00611_ XW-HD9(R) creaks and sparks as it begins to move. 00611_ D3-J0W(R) creaks and sparks as it begins to move. 00692_ Beam Rifle destroyed. 00696_ FO-Z0W(R) destroyed. 00696_ Switching to secondary target: D3-J0W(R). 00699_ Subatomizers dissect the Prototype Leg. 00699_ Acquired 13 matter. 00700_ Acquired Prototype Leg. 00703_ Lgt. Assault Rifle destroyed. 00705_ D3-J0W(R) affixes Scrap Shield Fragment to Scrap Shield. 00707_ Wheel destroyed. 00708_ Dropped Lgt. Treads. 00708_ Identified Cargo Legs. 00709_ Propulsion Shielding destroyed. 00709_ Core temporarily expanded with Utility slot. Map ----- +----------------------------------------------------+ | ????????????????????????????????????????????? | | ????????????????????????????????????????????? | | ????????????????????????????????????????????? | | ????????????????????????????????????????????? | | ????????????????????????????????????????????? | | ????????????????????????????????????????????? | | ????????????????????????????????????????????? | | ????????????????????????????????????????????? | | ????????????????????????????????????????????? | | ????????????????????????????????????????????? | | ????????????????????????????????????????????? | | ????????????????????????????????????????????? | | ????????????????????????????????????????????? | | ????????????????????????????????????????????? | | ????????????????????????????????????????????? | | ????????????????????????????????????????????? | | ????????????????????????????????????????????? | | ????????????????????????###?????????????????? | | ????????????????????????# #?????????????????? | | ???????????????????????## ##????????????????? | | ?????????????????????### ##???????????????? | | ???????????????????### ##??????????????? | | ??????????????????## #??????????????? | | ??????????????????# ##?????????????? | | ??????? ? ???????# [RR #?????????????? | | ???????# ???????####*&%@= #?????????????? | | ?????### ?????????####! #?????????????? | | ????? ?????????#### #?????????????? | | ????? ?????????# #?????????????? | | ?????? ?????????## #?????????????? | | ???????? ##????????# #?????????????? | | ?????????? ##???????# ##?????????????? | | ???????????# ###????## ###??????????????? | | ???????????# ##?### ##????????????????? | | ???????????# ### ##?????????????????? | | ??????????## ##?###?????????????? | | ????????### ## #?????????????? | | ????????# ## #?????????????? | | ????????# #### #?????????????? | | ?????#### #??## ##?????????????? | | ????## #???###### #??????????????? | | ##### #????????## #??????????????? | | ## ######?????????####??????????????? | | ##???????????????????????????????? | | #???????????????????????????????? | | #### ###?????????????????????????????? | | ##??# #?????????????????????????????? | | ????## #######?????????????????????????????? | | ?????####???????????????????????????????????? | | ????????????????????????????????????????????? | +----------------------------------------------------+ Best States ------------- Heat Dissipation 25 Energy Generation 10 Energy Capacity 125 Matter Stores 300 Matter Capacity 300 Sight Range 16 Terrain Scan Density 10 Armor Coverage 150 Propulsion Shielding 33 Weapon Shielding 33 Evasion (%) 44 Item Schematics ----------------- None Robot Schematics ------------------ None Fabricated ------------ Nothing Repaired ---------- Nothing Studied --------- None Alien Tech Used ----------------- None Achievements -------------- None Challenges ------------ None Game ------ Seed LayeredSingularityStatue Manual? 0 Play Time 00:09:29 Cumulative 103.8 hours Start 2025.12.01 @ 12:21:23 End 2025.12.01 @ 12:28:39 Sessions 1 Manual Loads 0 Difficulty Rogue Special Mode None Game No. 151 Rogue 151 Adventurer 0 Explorer 0 Win Type - Total 1 Types 1/0/0/0/0/0/0/0/0/0 Lore% 58 Gallery% 54 Achievement% 41 Wizard Run 0 Options --------- Layout 2 ASCII 0 Keyboard 0 Movement Mouse Keybinds 0 Fullscreen 1 Font 16/SmallcapsGlow Map View 25x24 Zoom Use 99% Tactical HUD 1 Map Filters NONE Filters NONE Steam SD RUN: 21313224-1528-4fe9-aa12-6bafdb2bff04